bitfinex-derivatives/quotes_BNBF0:USTF0_20251027
["timestamp","ask_amount","ask_price","bid_price","bid_amount"]
[1761556282828,1.28077295,1155.0,1151.5,0.53921719]
[1761556283031,1.28077295,1155.0,1151.6,0.53921719]
[1761556283230,1.28077295,1155.0,1150.8,0.63099757]
[1761556283431,1.28077295,1155.0,1150.9,0.53891764]
[1761556283626,1.28077295,1155.0,1151.0,0.53891764]
[1761556283827,1.28077295,1154.9,1151.1,0.53891764]
[1761556284031,1.28077295,1154.9,1151.2,0.53891764]
[1761556284329,1.28077295,1154.9,1151.3,0.53891764]
[1761556284530,1.28077295,1154.8,1151.4,0.53891764]
[1761556284730,1.28077295,1154.8,1151.5,0.53891764]
[1761556284933,1.28077295,1154.7,1150.9,0.63099757]
[1761556285129,1.28077295,1154.7,1151.0,0.53879932]
[1761556285333,1.28077295,1154.7,1151.1,0.53879932]
[1761556285531,1.28077295,1154.7,1151.2,0.53879932]
[1761556285729,1.28077295,1154.7,1151.3,0.53879932]
[1761556285932,1.28077295,1154.8,1151.4,0.53879932]
[1761556286129,1.28077295,1154.8,1151.5,0.53879932]
[1761556286330,1.28077295,1154.8,1151.6,0.53879932]
[1761556286533,1.28077295,1154.8,1151.0,0.63099757]
[1761556286735,1.28077295,1154.6,1151.1,0.53852288]
[1761556286932,1.28077295,1154.9,1151.2,0.53852288]
[1761556287136,1.28077295,1154.9,1151.3,0.53852288]
[1761556287333,1.28077295,1154.9,1151.4,0.53852288]
[1761556287634,1.28077295,1154.9,1151.5,0.53852288]
[1761556287936,1.28077295,1154.9,1151.6,0.53852288]
[1761556288134,1.28077295,1154.9,1151.0,0.63099757]
[1761556288334,1.28077295,1154.9,1151.1,0.53837259]
[1761556288536,1.28077295,1154.9,1151.2,0.53837259]
[1761556288836,1.28077295,1154.9,1151.3,0.53837259]
[1761556289133,1.28077295,1154.9,1151.4,0.53837259]
[1761556289438,1.28077295,1155.1,1151.5,0.53837259]
[1761556289637,1.28077295,1155.1,1151.6,0.53837259]
[1761556289937,1.28077295,1155.1,1151.7,0.53822176]
[1761556290231,1.28077295,1155.1,1151.0,0.63099757]
[1761556290434,1.28077295,1155.1,1151.1,0.53816383]
[1761556290637,1.28077295,1155.1,1151.2,0.53816383]
[1761556290937,1.28077295,1155.1,1151.3,0.53816383]
[1761556291138,1.28077295,1155.1,1151.4,0.53816383]
[1761556291334,1.28077295,1155.1,1151.5,0.53816383]
[1761556291637,1.28077295,1155.1,1151.6,0.53816383]
[1761556291834,1.28077295,1155.1,1151.7,0.53816383]
[1761556292038,1.28077295,1155.1,1151.0,0.63099757]
[1761556292234,1.28077295,1154.8,1151.1,0.53811788]
[1761556292439,1.28077295,1154.8,1151.2,0.53811788]
[1761556292634,1.28077295,1154.8,1151.3,0.53811788]
[1761556292835,1.28077295,1154.8,1150.6,0.63099757]
[1761556293034,1.28077295,1154.8,1150.7,0.53806691]
[1761556293238,1.28077295,1154.5,1150.8,1.16906448]
[1761556293533,1.28077295,1154.5,1150.9,0.53806691]
[1761556293734,1.28077295,1154.5,1151.0,0.53806691]
[1761556293936,1.28077295,1154.5,1151.1,0.53806691]
[1761556294135,1.28077295,1154.5,1151.2,0.53806691]
[1761556294339,1.28077295,1154.1,1150.9,0.63099757]
[1761556294736,1.28077295,1154.1,1150.8,0.63099757]
[1761556294940,1.28077295,1154.0,1150.8,1.16902824]
[1761556295239,1.28077295,1154.0,1150.9,0.53803067]
[1761556295436,1.28077295,1154.0,1151.0,0.53803067]
[1761556295637,1.28077295,1154.0,1151.1,0.53803067]
[1761556295835,1.28077295,1154.0,1150.7,0.63099757]
[1761556297440,1.28077295,1154.1,1150.7,1.16907731]
[1761556297740,1.28077295,1154.1,1150.8,0.53807974]
[1761556297937,1.28077295,1154.1,1150.9,0.53807974]
[1761556298141,1.28077295,1153.9,1151.0,0.53807974]
[1761556298341,1.28077295,1153.9,1150.7,0.63099757]
[1761556299138,1.28077295,1154.0,1150.7,0.63099757]
[1761556299544,1.28077295,1154.0,1150.7,1.16907016]
[1761556299744,1.28077295,1154.0,1150.8,0.53807259]
[1761556299942,1.28077295,1154.0,1150.9,0.53807259]
[1761556300145,1.28077295,1154.0,1151.0,0.53807259]
[1761556300444,1.28077295,1154.0,1151.1,0.53807259]
[1761556300645,1.28077295,1154.0,1150.7,0.63099757]
[1761556301544,1.28077295,1154.0,1150.7,1.16921227]
[1761556301744,1.28077295,1154.0,1150.8,0.5382147]
[1761556301947,1.28077295,1154.0,1150.9,0.5382147]
[1761556302143,1.28077295,1154.5,1151.0,0.5382147]
[1761556302347,1.28077295,1154.5,1151.1,0.5382147]
[1761556302546,1.28077295,1154.5,1151.2,0.5382147]
[1761556302747,1.28077295,1154.5,1151.3,0.5382147]
[1761556302944,1.28077295,1154.5,1151.4,0.5382147]
[1761556303245,1.28077295,1154.5,1150.9,0.63099757]
[1761556303448,1.28077295,1154.0,1151.0,0.53866778]
[1761556303644,1.28077295,1154.0,1151.1,0.53866778]
[1761556303950,1.28077295,1153.9,1150.7,0.63099757]
[1761556304150,1.28077295,1153.9,1150.8,0.53878685]
[1761556304348,1.28077295,1153.7,1150.6,1.16978442]
[1761556304551,1.28077295,1153.7,1150.7,0.53878685]
[1761556305348,1.28077295,1153.6,1150.7,0.53878685]
[1761556305751,1.28077295,1153.7,1150.7,1.16978442]
[1761556305947,1.28077295,1153.7,1150.8,0.53878685]
[1761556306148,1.28077295,1153.7,1150.9,1.32778685]
[1761556306352,1.28077295,1153.6,1151.0,0.53878685]
[1761556307453,1.28077295,1153.5,1151.0,0.53878685]
[1761556309952,2.9949059,1154.7,1151.0,0.53878685]
[1761556309953,1.28077295,1153.7,1151.0,0.53878685]
[1761556312353,1.28077295,1153.6,1151.0,0.53878685]
[1761556312650,1.28077295,1153.7,1151.0,0.53878685]
[1761556313454,1.28077295,1153.6,1151.0,0.53878685]
[1761556315355,1.28077295,1153.5,1151.0,0.53878685]
[1761556315652,1.28077295,1153.6,1151.1,0.53878685]
[1761556315955,1.28077295,1153.6,1151.2,0.53878685]
[1761556316153,1.28077295,1153.8,1151.3,0.53878685]
[1761556316356,1.28077295,1153.7,1150.9,0.789]
[1761556316551,1.28077295,1153.7,1151.0,0.54242938]
[1761556316753,1.28077295,1153.7,1151.1,0.54242938]
[1761556317051,1.28077295,1153.7,1151.2,0.54242938]
[1761556317253,1.28077295,1153.7,1151.3,0.54242938]
[1761556317456,1.28077295,1153.6,1150.9,0.789]
[1761556317756,1.28077295,1153.6,1151.0,0.54295742]
[1761556317956,1.28077295,1153.6,1151.1,0.54295742]
[1761556318152,1.28077295,1153.6,1151.2,0.54295742]
[1761556318352,1.28077295,1153.5,1151.3,0.54295742]
[1761556318552,1.28077295,1153.5,1151.4,0.54295742]
[1761556318754,1.28077295,1153.5,1150.9,0.789]
[1761556318958,1.28077295,1153.5,1151.0,0.54356379]
[1761556319157,1.28077295,1153.5,1151.1,0.54356379]
[1761556319354,1.28077295,1153.4,1151.2,0.54356379]
[1761556319559,1.28077295,1153.5,1151.3,0.54356379]
[1761556319755,1.28077295,1153.5,1151.4,0.54356379]
[1761556320056,1.28077295,1153.2,1150.9,1.41999757]
[1761556320259,1.28077295,1153.4,1151.1,0.63099757]
[1761556320556,1.28077295,1153.4,1151.2,0.54423597]
[1761556320754,1.28077295,1153.4,1151.3,0.54423597]
[1761556321058,1.28077295,1153.4,1151.4,0.54423597]
[1761556321255,1.28077295,1153.4,1151.5,0.54423597]
[1761556321456,1.28077295,1153.4,1151.6,0.54423597]
[1761556321658,1.28077295,1153.4,1151.1,0.63099757]
[1761556321858,1.28077295,1153.4,1151.2,0.5446143]
[1761556322059,1.28077295,1153.4,1151.3,0.5446143]
[1761556322258,1.28077295,1153.3,1151.4,0.5446143]
[1761556322458,1.28077295,1153.3,1151.5,0.5446143]
[1761556322659,1.28077295,1153.3,1151.6,0.5446143]
[1761556322863,1.28077295,1153.1,1151.3,0.63099757]
[1761556323061,1.28077295,1153.7,1151.4,0.54478264]
[1761556323362,1.28077295,1153.7,1151.5,0.54478264]
[1761556323559,1.28077295,1153.7,1151.6,1.63978264]
[1761556323862,1.28077295,1153.7,1151.7,0.54478264]
[1761556324058,1.28077295,1153.7,1151.8,0.54478264]
[1761556324262,1.28077295,1153.7,1151.9,0.54478264]
[1761556324458,1.28077295,1153.7,1151.6,1.095]
[1761556324657,1.28077295,1153.7,1151.7,0.54516156]
[1761556324863,1.28077295,1153.7,1151.8,0.54516156]
[1761556325063,1.28077295,1153.7,1151.9,0.54516156]
[1761556325259,1.28077295,1153.7,1151.6,1.095]
[1761556325260,1.28077295,1153.6,1151.6,1.095]
[1761556325462,1.28077295,1153.3,1151.7,0.54537261]
[1761556325661,1.28077295,1153.3,1151.6,1.095]
[1761556325960,1.28077295,1153.0,1151.6,1.095]
[1761556327359,1.28077295,1153.0,1151.7,0.54546294]
[1761556327564,1.28077295,1153.7,1151.8,0.54545484]
[1761556327764,1.28077295,1153.9,1151.9,0.54536389]
[1761556327964,1.28077295,1153.9,1152.0,0.54536389]
[1761556328165,1.28077295,1153.9,1151.6,1.095]
[1761556328461,1.28077295,1153.9,1151.7,0.54532851]
[1761556328661,1.28077295,1153.9,1151.8,0.54532851]
[1761556328864,1.28077295,1153.9,1151.9,0.54532851]
[1761556329162,1.28077295,1153.9,1152.0,0.54532851]
[1761556329364,1.28077295,1153.9,1151.6,1.095]
[1761556329565,1.28077295,1153.9,1151.7,0.54529587]
[1761556329764,1.28077295,1154.0,1151.9,0.63099757]
[1761556329961,1.28077295,1155.5,1152.9,0.63099757]
[1761556330160,1.28077295,1155.0,1153.3,0.63099757]
[1761556330461,2.13925744,1155.7,1153.4,0.54529587]
[1761556330665,1.28077295,1156.2,1153.5,0.54529587]
[1761556330962,1.28077295,1156.0,1153.6,0.54529587]
[1761556331162,1.28077295,1156.2,1153.7,0.54529587]
[1761556331360,1.28077295,1156.0,1153.2,0.63099757]
[1761556331565,1.28077295,1156.0,1153.3,0.54060515]
[1761556331764,1.28077295,1156.0,1153.4,0.54060515]
[1761556331961,1.28077295,1155.9,1153.5,0.54060515]
[1761556332163,1.28077295,1156.0,1153.6,0.54060515]
[1761556332367,1.28077295,1156.1,1153.1,0.63099757]
[1761556332668,1.28077295,1156.1,1153.2,0.53940136]
[1761556332863,1.28077295,1156.2,1153.3,0.53940136]
[1761556333064,1.28077295,1156.2,1153.4,0.53940136]
[1761556333262,1.28077295,1156.4,1153.5,0.53940136]
[1761556333464,0.15073451,1156.6,1153.6,0.53940136]
[1761556333663,0.15073451,1156.6,1153.7,0.53940136]
[1761556333867,0.15073451,1156.6,1152.9,0.63099757]
[1761556334167,0.15073451,1156.6,1153.0,0.5383961]
[1761556334364,1.28077295,1157.0,1153.1,0.5383961]
[1761556334568,1.28077295,1156.6,1153.3,0.63099757]
[1761556334769,1.43143567,1156.9,1153.4,0.5383961]
[1761556334966,0.15066272,1156.9,1153.5,0.5383961]
[1761556335170,0.15066272,1156.9,1153.6,0.5383961]
[1761556335369,0.15066272,1156.9,1153.7,0.5383961]
[1761556335569,0.15066272,1156.9,1153.8,0.5383961]
[1761556335766,0.15066272,1156.9,1153.9,0.5383961]
[1761556335971,0.15066272,1156.9,1154.0,0.5383961]
[1761556336171,0.15066272,1156.9,1153.3,0.63099757]
[1761556336373,0.15066272,1156.9,1153.4,0.5349682]
[1761556336567,0.15066272,1156.9,1153.5,0.5349682]
[1761556336773,0.15066272,1156.9,1153.6,0.5349682]
[1761556337068,0.15066272,1156.9,1153.7,0.5349682]
[1761556337269,0.15066272,1156.9,1153.8,0.5349682]
[1761556337469,0.15066272,1156.9,1153.9,0.5349682]
[1761556337667,0.15066272,1156.9,1153.2,0.63099757]
[1761556337969,0.15066272,1156.9,1153.3,0.53411697]
[1761556338169,0.15066272,1156.9,1153.4,0.53411697]
[1761556338469,0.15066272,1156.9,1153.5,0.53411697]
[1761556338672,0.15066272,1156.9,1153.6,0.53411697]
[1761556338871,0.15066272,1156.9,1153.7,0.53411697]
[1761556339069,0.15066272,1156.9,1153.8,0.53411697]
[1761556339268,0.15066272,1156.9,1153.0,0.63099757]
[1761556339470,0.15066272,1156.9,1153.1,0.53264398]
[1761556339669,0.15066272,1156.9,1153.2,0.53264398]
[1761556339867,0.15066272,1156.9,1153.3,0.53264398]
[1761556340070,0.15066272,1156.9,1153.4,0.53264398]
[1761556340272,0.15066272,1156.9,1153.5,0.53264398]
[1761556340471,0.15066272,1156.9,1153.6,0.53264398]
[1761556340669,0.15066272,1156.9,1153.7,0.53264398]
[1761556340874,0.15066272,1156.9,1153.0,0.63099757]
[1761556341170,0.15066272,1156.9,1153.1,0.53206724]
[1761556341472,0.15066272,1156.9,1153.2,0.53206724]
[1761556341672,0.15066272,1156.9,1153.3,0.53206724]
[1761556341869,0.15066272,1156.9,1153.4,0.53206724]
[1761556342170,0.15066272,1156.9,1153.0,0.63099757]
[1761556342171,0.15066272,1156.9,1153.5,0.53206724]
[1761556342375,0.15066272,1156.9,1153.1,0.63099757]
[1761556342572,0.15066272,1156.9,1153.2,0.53098257]
[1761556342775,0.15066272,1156.9,1153.3,0.53098257]
[1761556342976,0.15066272,1156.9,1153.4,0.53098257]
[1761556343176,0.15066272,1156.9,1153.5,0.53098257]
[1761556343473,0.15066272,1156.9,1153.0,0.63099757]
[1761556343675,0.15066272,1156.9,1153.1,0.53050809]
[1761556343873,0.15066272,1156.9,1153.2,0.53050809]
[1761556344175,0.15066272,1156.9,1153.3,0.53050809]
[1761556344377,0.15066272,1156.9,1153.4,0.53050809]
[1761556344676,0.15066272,1156.9,1153.5,0.53050809]
[1761556344873,0.15066272,1156.9,1152.9,0.63099757]
[1761556345177,0.15066272,1156.9,1153.0,0.53006565]
[1761556345377,0.15066272,1156.9,1153.1,0.53006565]
[1761556345673,0.15066272,1156.9,1153.2,0.53006565]
[1761556345874,0.15066272,1156.9,1153.3,0.53006565]
[1761556346177,0.15066272,1156.9,1153.4,0.53006565]
[1761556346373,0.15066272,1156.9,1153.5,0.53006565]
[1761556346576,0.15066272,1156.9,1152.8,0.63099757]
[1761556346873,0.15066272,1156.9,1152.9,1.51028337]
[1761556347076,0.15066272,1156.9,1153.0,0.52928337]
[1761556347278,0.15066272,1156.9,1153.1,0.52928337]
[1761556347473,0.15066272,1156.9,1153.2,0.52928337]
[1761556347676,0.15066272,1156.9,1153.3,0.52928337]
[1761556347877,0.15066272,1156.9,1153.4,0.52928337]
[1761556348173,0.15066272,1156.9,1152.9,0.981]
[1761556348373,0.15066272,1156.9,1153.0,0.52860652]
[1761556348577,0.15066272,1156.9,1153.1,0.52860652]
[1761556348772,0.15066272,1156.9,1153.2,0.52860652]
[1761556348974,0.15066272,1156.9,1153.3,0.52860652]
[1761556349180,0.15066272,1156.9,1152.9,1.61199757]
[1761556349376,0.15066272,1156.9,1153.0,0.52832924]
[1761556349576,0.15066272,1156.9,1153.1,0.52832924]
[1761556349774,0.15066272,1156.9,1152.9,0.981]
[1761556349978,0.15066272,1156.9,1153.0,0.52846751]
[1761556350178,0.15066272,1156.9,1153.1,0.52846751]
[1761556350477,0.15066272,1156.9,1152.9,0.981]
[1761556350676,0.15066272,1156.9,1153.0,0.52823248]
[1761556350876,0.15066272,1156.9,1153.1,0.52823248]
[1761556351078,0.15066272,1156.9,1152.9,0.981]
[1761556351277,0.15066272,1156.9,1153.0,0.52804748]
[1761556351577,0.15066272,1156.9,1153.1,0.52804748]
[1761556351880,0.15066272,1156.9,1152.9,0.981]
[1761556352080,0.15066272,1156.9,1153.0,0.5279408]
[1761556352278,0.15066272,1156.9,1153.1,0.5279408]
[1761556352479,0.15066272,1156.9,1153.2,0.5279408]
[1761556352778,0.15066272,1156.9,1152.9,0.981]
[1761556352981,0.15066272,1156.9,1153.0,0.52774368]
[1761556353178,0.15066272,1156.9,1153.1,0.52774368]
[1761556353377,0.15066272,1156.9,1153.2,0.52774368]
[1761556353577,0.15066272,1156.9,1152.9,0.981]
[1761556353778,0.15066272,1156.9,1153.0,0.52755591]
[1761556353981,0.15066272,1156.9,1153.1,0.52755591]
[1761556354179,0.15066272,1156.9,1153.2,0.52755591]
[1761556354385,0.15066272,1156.9,1153.3,0.52755591]
[1761556354581,0.15066272,1156.9,1153.3,0.876]
[1761556371195,0.15066272,1156.9,1153.4,0.53058774]
[1761556371395,0.15066272,1156.9,1153.3,0.876]
[1761556371600,0.15066272,1156.9,1153.4,0.53067922]
[1761556371899,0.15066272,1156.9,1153.3,0.876]
[1761556372200,0.15066272,1156.9,1153.4,0.53067896]
[1761556372498,0.15066272,1156.9,1153.3,0.876]
[1761556375200,0.15066272,1156.9,1153.4,0.53306663]
[1761556375405,0.15066272,1156.9,1153.3,0.876]
[1761556375698,0.15066272,1156.9,1153.4,0.53306726]
[1761556375903,0.15066272,1156.9,1153.3,0.876]
[1761556376103,0.15066272,1156.9,1153.4,0.53306726]
[1761556376300,0.15066272,1156.9,1153.5,0.53306726]
[1761556376500,0.15066272,1156.9,1153.3,0.876]
[1761556376800,0.15066272,1156.9,1153.4,0.53365479]
[1761556377002,0.15066272,1156.9,1153.3,0.876]
[1761556377204,0.15066272,1156.9,1153.4,0.5337919]
[1761556377401,0.15066272,1156.9,1153.5,0.5337919]
[1761556377705,0.15066272,1156.9,1153.6,0.53441903]
[1761556377905,0.15066272,1156.9,1153.7,1.62641903]
[1761556378105,0.15066272,1156.9,1153.8,0.53441903]
[1761556378302,0.15066272,1156.9,1153.9,0.53441903]
[1761556378504,0.15066272,1156.9,1153.7,1.092]
[1761556378704,0.15066272,1156.9,1153.8,0.53479635]
[1761556378904,0.15066272,1156.9,1153.9,0.53479635]
[1761556379108,0.15066272,1156.9,1153.7,1.092]
[1761556379407,0.15066272,1156.9,1153.8,0.53555426]
[1761556379704,0.15066272,1156.9,1153.9,0.53555426]
[1761556379905,0.15066272,1156.9,1154.0,0.53555426]
[1761556380103,0.15066272,1156.9,1153.7,1.092]
[1761556380304,0.15066272,1156.9,1153.8,0.53555474]
[1761556380502,0.15066272,1156.9,1153.9,0.53555474]
[1761556380710,0.15066272,1156.9,1154.0,0.53555474]
[1761556380911,0.15066272,1156.9,1153.7,1.092]
[1761556381210,0.15066272,1156.9,1153.8,0.53551383]
[1761556381411,0.15066272,1156.9,1153.9,0.53551383]
[1761556381610,0.15066272,1156.9,1154.0,0.53551383]
[1761556381810,0.15066272,1156.9,1153.7,1.092]
[1761556382010,0.15066272,1156.9,1153.8,0.53620856]
[1761556382212,0.15066272,1156.9,1153.7,1.092]
[1761556382416,0.15066272,1156.9,1153.8,0.53688925]
[1761556382615,0.15066272,1156.9,1153.9,0.53684475]
[1761556382816,0.15066272,1156.9,1153.7,1.092]
[1761556383017,0.15066272,1156.9,1153.8,0.53678226]
[1761556383211,1.43143567,1156.9,1153.9,0.53735827]
[1761556383413,0.15066272,1156.9,1154.0,0.53735827]
[1761556383617,0.15066272,1156.9,1153.7,1.092]
[1761556383914,0.15066272,1156.9,1153.8,0.53734028]
[1761556384117,0.15066272,1156.9,1153.9,0.53734028]
[1761556384417,0.15066272,1156.9,1154.0,0.53734028]
[1761556384613,0.15066272,1156.9,1153.7,1.092]
[1761556384816,0.15066272,1156.9,1153.8,0.53797221]
[1761556385116,0.15066272,1156.9,1153.9,0.53797221]
[1761556385413,0.15066272,1156.9,1154.0,0.53797221]
[1761556385617,0.15066272,1156.9,1153.7,1.092]
[1761556385817,0.15066272,1156.9,1153.8,0.53868738]
[1761556386014,0.15066272,1156.9,1153.9,0.53868738]
[1761556386218,1.28077295,1156.8,1154.0,0.53868738]
[1761556386414,1.28077295,1156.8,1154.1,0.53868738]
[1761556386616,1.43143567,1156.9,1153.7,1.092]
[1761556386816,0.15066272,1156.9,1153.8,0.53988402]
[1761556387014,0.15066272,1156.9,1153.9,0.53988402]
[1761556387319,1.28077295,1156.8,1154.0,0.53988402]
[1761556387516,1.28077295,1156.8,1154.1,0.53988402]
[1761556387719,1.28077295,1156.8,1154.2,0.53988402]
[1761556387918,1.28077295,1156.8,1153.7,1.092]
[1761556388119,1.28077295,1156.6,1153.8,0.54136756]
[1761556388418,1.28077295,1156.6,1153.9,0.54136756]
[1761556388620,1.28077295,1156.6,1154.0,0.54136756]
[1761556388818,1.28077295,1156.6,1154.1,0.54136756]
[1761556389021,1.28077295,1156.6,1154.2,0.54136756]
[1761556389221,1.28077295,1156.3,1154.3,0.54136756]
[1761556389423,1.28077295,1156.3,1154.4,0.54136756]
[1761556389618,1.28077295,1156.3,1154.5,0.54136756]
[1761556389824,1.28077295,1156.3,1153.8,0.63099757]
[1761556390023,1.28077295,1156.3,1153.9,0.54543389]
[1761556390226,1.28077295,1156.3,1154.0,0.54543389]
[1761556390525,1.28077295,1156.3,1153.7,1.092]
[1761556390526,1.28077295,1156.6,1154.1,0.54543389]
[1761556390820,1.28077295,1156.6,1154.2,0.54543389]
[1761556391025,1.28077295,1156.6,1154.3,1.51443389]
[1761556391324,1.28077295,1156.8,1154.4,0.54543389]
[1761556391522,1.28077295,1156.8,1154.5,0.54543389]
[1761556391822,1.28077295,1156.8,1154.6,0.54543389]
[1761556392121,1.28077295,1156.7,1154.7,0.54543389]
[1761556392322,1.28077295,1156.7,1154.8,0.54543389]
[1761556392626,1.28077295,1156.7,1154.3,0.969]
[1761556392922,0.15063207,1157.2,1154.4,0.54528488]
[1761556392923,1.28077295,1156.6,1154.4,0.54528488]
[1761556393122,1.28077295,1156.6,1154.5,0.54528488]
[1761556393324,1.28077295,1156.6,1154.6,0.54528488]
[1761556393521,1.28077295,1156.6,1154.7,0.54528488]
[1761556393725,1.28077295,1156.6,1154.8,0.54528488]
[1761556393925,1.28077295,1156.5,1154.3,0.969]
[1761556394122,1.28077295,1156.5,1154.4,0.54510854]
[1761556394321,1.28077295,1156.5,1154.5,0.54510854]
[1761556394624,1.28077295,1156.5,1154.3,0.969]
[1761556394625,1.28077295,1156.5,1154.6,0.54510854]
[1761556394824,1.28077295,1156.5,1154.7,0.54510854]
[1761556395024,1.28077295,1156.5,1154.8,0.54510854]
[1761556395321,1.28077295,1156.5,1154.3,0.969]
[1761556395623,1.28077295,1156.5,1154.4,0.54497955]
[1761556395825,1.28077295,1156.6,1154.5,0.54497955]
[1761556396125,1.28077295,1156.6,1154.6,0.54497955]
[1761556396325,1.28077295,1156.6,1154.7,0.54497955]
[1761556396527,1.28077295,1156.6,1154.8,0.54497955]
[1761556396726,1.28077295,1156.6,1154.3,0.969]
[1761556396924,1.28077295,1156.6,1154.4,0.54468474]
[1761556397128,1.28077295,1156.6,1154.5,0.54468474]
[1761556397428,1.28077295,1156.6,1154.3,0.969]
[1761556397429,1.28077295,1156.6,1154.6,0.54468474]
[1761556397626,1.28077295,1156.6,1154.7,0.54468474]
[1761556397829,1.28077295,1156.6,1154.8,0.54468474]
[1761556398030,1.28077295,1156.6,1154.3,0.969]
[1761556398326,1.28077295,1156.5,1154.4,0.54464005]
[1761556398529,1.28077295,1156.5,1154.5,0.54464005]
[1761556398829,1.28077295,1156.5,1154.6,0.54464005]
[1761556399028,1.28077295,1156.5,1154.7,0.54464005]
[1761556399225,1.28077295,1156.5,1154.8,0.54464005]
[1761556399430,1.28077295,1156.5,1154.9,0.54464005]
[1761556399627,1.28077295,1156.8,1155.0,0.54464005]
[1761556399926,1.28077295,1156.4,1155.1,0.54464005]
[1761556400127,1.28077295,1156.3,1154.8,0.63099757]
[1761556400429,1.28077295,1156.5,1154.9,0.54370536]
[1761556400630,1.28077295,1156.5,1155.0,0.54370536]
[1761556400826,1.28077295,1157.5,1155.1,0.54370536]
[1761556401025,1.28077295,1157.5,1155.2,0.54370536]
[1761556401226,1.28077295,1157.5,1155.3,0.54370536]
[1761556401526,1.28077295,1157.5,1155.4,0.54370536]
[1761556401732,1.28077295,1157.5,1154.7,0.63099757]
[1761556402027,1.28077295,1157.5,1154.8,0.5422995]
[1761556402231,1.28077295,1157.5,1154.9,0.5422995]
[1761556402428,1.28077295,1157.6,1155.0,0.5422995]
[1761556402627,1.28077295,1157.7,1155.1,0.5422995]
[1761556402927,1.28077295,1157.4,1155.2,0.5422995]
[1761556403130,1.28077295,1157.3,1154.6,0.63099757]
[1761556403332,1.28077295,1157.4,1154.7,0.54184231]
[1761556403531,1.28077295,1157.4,1154.8,0.54184231]
[1761556403729,1.28077295,1157.4,1154.9,0.54184231]
[1761556404031,1.28077295,1157.4,1154.6,0.63099757]
[1761556404032,1.28077295,1157.4,1155.0,0.54184231]
[1761556404329,1.28077295,1157.4,1155.1,0.54184231]
[1761556404532,1.28077295,1157.5,1155.2,0.54184231]
[1761556404730,1.28077295,1157.3,1155.3,0.54091888]
[1761556404932,1.28077295,1157.3,1154.8,0.63099757]
[1761556405132,1.28077295,1157.3,1154.9,0.54092092]
[1761556405331,1.28077295,1157.5,1155.0,0.54092092]
[1761556405534,1.28077295,1157.5,1155.1,0.54092092]
[1761556405833,1.28077295,1157.7,1155.2,0.54092092]
[1761556406032,1.28077295,1157.8,1155.3,0.54092092]
[1761556406232,1.28077295,1157.8,1155.4,0.54092092]
[1761556406436,1.28077295,1157.8,1154.7,0.63099757]
[1761556406736,1.28077295,1157.8,1154.8,0.54010855]
[1761556407033,1.28077295,1157.8,1154.9,0.54010855]
[1761556407232,1.28077295,1157.8,1155.0,0.54010855]
[1761556407434,1.28077295,1157.9,1155.1,0.54010855]
[1761556407638,1.28077295,1157.9,1155.2,0.54010855]
[1761556407837,1.28077295,1157.9,1155.3,0.54010855]
[1761556408035,1.28077295,1157.9,1155.4,0.54010855]
[1761556408336,1.28077295,1158.0,1155.5,1.09]
[1761556409335,1.28077295,1157.8,1155.5,1.09]
[1761556409938,1.28077295,1158.0,1155.6,0.53872596]
[1761556410236,1.28077295,1158.0,1155.5,1.09]
[1761556410441,1.28077295,1158.2,1155.6,0.5382546]
[1761556410641,1.28077295,1158.2,1155.5,1.09]
[1761556413938,1.28077295,1158.5,1155.5,1.09]
[1761556414141,1.28077295,1158.5,1155.6,0.53710125]
[1761556414341,1.43120512,1158.6,1155.5,1.09]
[1761556414642,0.15043217,1158.6,1155.6,0.53679197]
[1761556414941,0.15043217,1158.6,1155.5,1.09]
[1761556415141,0.15043217,1158.6,1155.6,0.53685943]
[1761556415441,1.28077295,1158.7,1155.7,0.53645276]
[1761556415638,1.43117001,1158.8,1155.5,1.09]
[1761556415841,1.28077295,1158.4,1155.6,0.53637517]
[1761556416042,1.28077295,1158.4,1155.7,0.53637517]
[1761556416338,1.28077295,1159.4,1155.8,0.53609231]
[1761556416542,1.28077295,1159.4,1155.5,1.09]
[1761556416543,1.28077295,1159.6,1155.9,0.53609231]
[1761556416741,0.15038211,1159.1,1156.0,0.53609231]
[1761556416938,0.15038211,1159.1,1156.1,0.53609231]
[1761556417138,0.15038211,1159.1,1156.2,0.53609231]
[1761556417337,0.15038211,1159.1,1155.5,1.72099757]
[1761556417642,1.43115506,1159.1,1155.7,0.63099757]
[1761556417840,1.28077295,1159.0,1155.7,0.63099757]
[1761556418043,1.28077295,1158.8,1155.8,0.53466351]
[1761556418241,0.15038211,1159.1,1155.9,0.53466351]
[1761556418445,0.15038211,1159.1,1155.5,1.72099757]
[1761556418446,0.15038211,1159.1,1156.0,0.53466351]
[1761556418744,0.15038211,1159.1,1156.1,0.53466351]
[1761556418944,0.15038211,1159.1,1155.5,1.72099757]
[1761556419145,0.15038211,1159.1,1155.6,0.53429488]
[1761556419445,0.15038211,1159.1,1155.7,0.53429488]
[1761556419642,0.15038211,1159.1,1155.5,1.09]
[1761556419643,0.15038211,1159.1,1155.8,0.53429488]
[1761556419945,0.15038211,1159.1,1155.9,0.53429488]
[1761556420142,0.15038211,1159.1,1156.0,0.53429488]
[1761556420340,0.15038211,1159.1,1156.1,0.53429488]
[1761556420540,0.15038211,1159.1,1155.5,1.09]
[1761556420541,0.15038211,1159.1,1156.2,0.53429488]
[1761556420745,0.15038211,1159.1,1155.5,1.09]
[1761556420942,0.15038211,1159.1,1155.6,0.53370706]
[1761556421146,0.15038211,1159.1,1155.7,0.53370706]
[1761556421344,0.15038211,1159.1,1155.8,0.53370706]
[1761556421543,0.15038211,1159.1,1155.9,0.53370706]
[1761556421749,0.15038211,1159.1,1156.0,0.53370706]
[1761556421949,0.15038211,1159.1,1155.5,1.09]
[1761556422150,1.43115506,1159.1,1155.6,0.53342074]
[1761556422344,0.15038211,1159.1,1155.7,0.53342074]
[1761556422648,0.15038211,1159.1,1155.8,0.53342074]
[1761556422850,0.15038211,1159.1,1155.9,0.53308715]
[1761556423146,0.15038211,1159.1,1155.5,1.09]
[1761556423349,0.15038211,1159.1,1155.6,0.53311943]
[1761556423648,0.15038211,1159.1,1155.7,0.53311943]
[1761556423849,0.15038211,1159.1,1155.8,0.53311943]
[1761556424049,0.15038211,1159.1,1155.9,0.53311943]
[1761556424251,0.15038211,1159.1,1155.5,1.09]
[1761556424448,1.28077295,1159.8,1155.6,0.532596]
[1761556424648,0.15032235,1159.3,1155.7,0.532596]
[1761556424849,0.15032235,1159.3,1155.8,0.532596]
[1761556425048,0.15032235,1159.3,1155.9,0.532596]
[1761556425247,0.15032235,1159.3,1156.0,0.532596]
[1761556425451,0.15032235,1159.3,1156.1,0.532596]
[1761556425652,0.15032235,1159.3,1155.2,0.63099757]
[1761556425853,1.28077295,1160.5,1155.3,1.1630991]
[1761556426049,0.15030807,1159.5,1155.4,1.1630991]
[1761556426252,0.15030807,1159.5,1155.5,1.1630991]
[1761556426451,0.15030807,1159.5,1155.6,0.53210153]
[1761556426650,1.28077295,1159.4,1155.7,0.53210153]